[Event "January 9 Early 2024"]
[Site "https://www.chess.com"]
[Date "2024.01.11"]
[Round "8"]
[White "Rakitin, Daniil"]
[Black "Horak, Martin"]
[Result "1-0"]
[Board "113"]
[TimeControl "180+1"]
[WhiteFideId "24219762"]
[BlackFideId "367095"]
[WhiteElo "2686"]
[BlackElo "2521"]
[WhiteTeam "RUS"]
[BlackTeam "CZE"]
[WhiteClock "0:00:06"]
[BlackClock "0:00:03"]

1. e4 {[%clk 0:03:00]}  c5 {[%clk 0:02:59]} 2. Nf3 {[%clk 0:03:00]}  Nc6 {[%clk 0:03:00]} 3. Bb5 {[%clk 0:02:59]}  Nf6 {[%clk 0:03:00]} 4. e5 {[%clk 0:02:59]}  Nd5 {[%clk 0:02:59]} 5. Nc3 {[%clk 0:03:00]}  Nc7 {[%clk 0:02:56]} 6. Bxc6 {[%clk 0:02:58]}  dxc6 {[%clk 0:02:56]} 7. h3 {[%clk 0:02:58]}  h6 {[%clk 0:02:49]} 8. O-O {[%clk 0:02:59]}  Bf5 {[%clk 0:02:49]} 9. d3 {[%clk 0:02:59]}  Qd7 {[%clk 0:02:43]} 10. a4 {[%clk 0:02:58]}  g5 {[%clk 0:02:40]} 11. Nd2 {[%clk 0:02:58]}  Bg7 {[%clk 0:02:35]} 12. Re1 {[%clk 0:02:57]}  O-O-O {[%clk 0:02:27]} 13. Nc4 {[%clk 0:02:40]}  Nd5 {[%clk 0:02:19]} 14. a5 {[%clk 0:02:23]}  Kb8 {[%clk 0:02:14]} 15. Na4 {[%clk 0:02:21]}  Nf4 {[%clk 0:01:36]} 16. Nxc5 {[%clk 0:01:00]}  Qd5 {[%clk 0:01:35]} 17. Bxf4 {[%clk 0:01:00]}  gxf4 {[%clk 0:01:30]} 18. b4 {[%clk 0:00:33]}  Rhg8 {[%clk 0:01:28]} 19. Ne4 {[%clk 0:00:20]}  Bxe5 {[%clk 0:01:18]} 20. Nxe5 {[%clk 0:00:19]}  Qxe5 {[%clk 0:01:19]} 21. Qf3 {[%clk 0:00:19]}  Bxe4 {[%clk 0:00:27]} 22. Qxe4 {[%clk 0:00:20]}  Qg5 {[%clk 0:00:27]} 23. Qe5+ {[%clk 0:00:13]}  Qxe5 {[%clk 0:00:27]} 24. Rxe5 {[%clk 0:00:14]}  e6 {[%clk 0:00:26]} 25. Re4 {[%clk 0:00:13]}  f3 {[%clk 0:00:24]} 26. g3 {[%clk 0:00:13]}  Rg5 {[%clk 0:00:19]} 27. Rf4 {[%clk 0:00:12]}  Rb5 {[%clk 0:00:15]} 28. Rxf3 {[%clk 0:00:08]}  Rxb4 {[%clk 0:00:13]} 29. Rxf7 {[%clk 0:00:09]}  Rb2 {[%clk 0:00:12]} 30. a6 {[%clk 0:00:09]}  b6 {[%clk 0:00:03]} 31. Re1 {[%clk 0:00:06]} 1-0

[Event "January 9 Early 2024"]
[Site "https://www.chess.com"]
[Date "2024.01.11"]
[Round "8"]
[White "Saim, Mohamed Ilias"]
[Black "Kekic, Armin"]
[Result "0-1"]
[Board "114"]
[TimeControl "180+1"]
[WhiteFideId "7900465"]
[BlackFideId "14401274"]
[WhiteElo "2107"]
[BlackElo "2336"]
[WhiteTeam "ALG"]
[BlackTeam "BIH"]
[WhiteClock "0:00:01"]
[BlackClock "0:00:32"]

1. c4 {[%clk 0:03:00]}  e5 {[%clk 0:02:58]} 2. g3 {[%clk 0:03:00]}  Nc6 {[%clk 0:02:58]} 3. Bg2 {[%clk 0:03:00]}  Nf6 {[%clk 0:02:58]} 4. Nc3 {[%clk 0:02:59]}  Bb4 {[%clk 0:02:58]} 5. Nd5 {[%clk 0:02:45]}  Bc5 {[%clk 0:02:50]} 6. a3 {[%clk 0:02:42]}  a5 {[%clk 0:02:49]} 7. d3 {[%clk 0:02:32]}  h6 {[%clk 0:02:49]} 8. Nf3 {[%clk 0:02:30]}  d6 {[%clk 0:02:49]} 9. O-O {[%clk 0:02:29]}  O-O {[%clk 0:02:49]} 10. Rb1 {[%clk 0:02:25]}  Nd4 {[%clk 0:02:30]} 11. b4 {[%clk 0:02:10]}  axb4 {[%clk 0:02:29]} 12. axb4 {[%clk 0:02:11]}  Nxf3+ {[%clk 0:02:29]} 13. Bxf3 {[%clk 0:02:08]}  Nxd5 {[%clk 0:02:24]} 14. Bxd5 {[%clk 0:02:04]}  Bb6 {[%clk 0:02:22]} 15. Qc2 {[%clk 0:01:53]}  c6 {[%clk 0:02:19]} 16. Bg2 {[%clk 0:01:51]}  Bg4 {[%clk 0:02:15]} 17. c5 {[%clk 0:01:37]}  Bc7 {[%clk 0:02:13]} 18. cxd6 {[%clk 0:01:27]}  Qxd6 {[%clk 0:02:12]} 19. b5 {[%clk 0:01:24]}  Rfc8 {[%clk 0:02:07]} 20. bxc6 {[%clk 0:01:19]}  bxc6 {[%clk 0:02:07]} 21. Qxc6 {[%clk 0:00:58]}  Bxe2 {[%clk 0:01:42]} 22. Qxd6 {[%clk 0:00:52]}  Bxd6 {[%clk 0:01:43]} 23. Bxa8 {[%clk 0:00:45]}  Bxf1 {[%clk 0:01:30]} 24. Be4 {[%clk 0:00:31]}  Bh3 {[%clk 0:01:24]} 25. Be3 {[%clk 0:00:24]}  h5 {[%clk 0:01:00]} 26. Bg2 {[%clk 0:00:23]}  Bxg2 {[%clk 0:00:58]} 27. Kxg2 {[%clk 0:00:24]}  Rc3 {[%clk 0:00:54]} 28. d4 {[%clk 0:00:24]}  e4 {[%clk 0:00:54]} 29. Rb6 {[%clk 0:00:21]}  Ba3 {[%clk 0:00:48]} 30. Rb5 {[%clk 0:00:20]}  g6 {[%clk 0:00:47]} 31. d5 {[%clk 0:00:17]}  Rd3 {[%clk 0:00:46]} 32. Ra5 {[%clk 0:00:10]}  Bd6 {[%clk 0:00:39]} 33. Ra8+ {[%clk 0:00:08]}  Kg7 {[%clk 0:00:38]} 34. Ra5 {[%clk 0:00:09]}  f5 {[%clk 0:00:37]} 35. Kg1 {[%clk 0:00:09]}  Kf6 {[%clk 0:00:37]} 36. Kf1 {[%clk 0:00:09]}  g5 {[%clk 0:00:37]} 37. Ke2 {[%clk 0:00:08]}  f4 {[%clk 0:00:37]} 38. gxf4 {[%clk 0:00:05]}  gxf4 {[%clk 0:00:38]} 39. Bd2 {[%clk 0:00:05]}  f3+ {[%clk 0:00:38]} 40. Ke1 {[%clk 0:00:05]}  Rxd2 {[%clk 0:00:37]} 41. Ra6 {[%clk 0:00:03]}  Rxd5 {[%clk 0:00:36]} 42. Ra8 {[%clk 0:00:01]}  Kf5 {[%clk 0:00:36]} 43. h4 {[%clk 0:00:02]}  Bf4 {[%clk 0:00:32]} 44. Rf8+ {[%clk 0:00:02]}  Kg4 {[%clk 0:00:32]} 45. Rf7 {[%clk 0:00:01]}  Rc5 {[%clk 0:00:32]} 0-1

[Event "January 9 Early 2024"]
[Site "https://www.chess.com"]
[Date "2024.01.11"]
[Round "8"]
[White "Rasulov, Vugar"]
[Black "Haug, Havard"]
[Result "0-1"]
[Board "116"]
[TimeControl "180+1"]
[WhiteFideId "13402390"]
[BlackFideId "1547887"]
[WhiteElo "2963"]
[BlackElo "2799"]
[WhiteTeam "AZE"]
[BlackTeam "NOR"]
[WhiteClock "0:00:11"]
[BlackClock "0:00:28"]

1. Nf3 {[%clk 0:03:00]}  d5 {[%clk 0:02:58]} 2. c4 {[%clk 0:03:01]}  e6 {[%clk 0:02:59]} 3. e3 {[%clk 0:03:01]}  c5 {[%clk 0:03:00]} 4. Nc3 {[%clk 0:03:02]}  Nf6 {[%clk 0:03:00]} 5. d4 {[%clk 0:03:02]}  Nc6 {[%clk 0:02:59]} 6. a3 {[%clk 0:03:01]}  dxc4 {[%clk 0:02:59]} 7. Bxc4 {[%clk 0:03:02]}  a6 {[%clk 0:02:59]} 8. dxc5 {[%clk 0:03:01]}  Qxd1+ {[%clk 0:02:54]} 9. Kxd1 {[%clk 0:03:01]}  Bxc5 {[%clk 0:02:54]} 10. b4 {[%clk 0:03:02]}  Ba7 {[%clk 0:02:48]} 11. Ke2 {[%clk 0:03:01]}  b5 {[%clk 0:02:48]} 12. Bd3 {[%clk 0:03:01]}  Ke7 {[%clk 0:02:48]} 13. Bb2 {[%clk 0:03:01]}  Bb7 {[%clk 0:02:47]} 14. Rac1 {[%clk 0:03:02]}  Rac8 {[%clk 0:02:44]} 15. Rhd1 {[%clk 0:02:59]}  Rhd8 {[%clk 0:02:44]} 16. Ne4 {[%clk 0:02:53]}  Nxe4 {[%clk 0:02:31]} 17. Bxe4 {[%clk 0:02:54]}  g6 {[%clk 0:02:14]} 18. Rxd8 {[%clk 0:02:51]}  Nxd8 {[%clk 0:02:10]} 19. Rxc8 {[%clk 0:02:45]}  Bxc8 {[%clk 0:02:11]} 20. g4 {[%clk 0:02:40]}  Bb7 {[%clk 0:02:09]} 21. Bd3 {[%clk 0:02:37]}  f5 {[%clk 0:02:03]} 22. g5 {[%clk 0:02:36]}  Nf7 {[%clk 0:02:02]} 23. Bf6+ {[%clk 0:02:34]}  Kd7 {[%clk 0:02:02]} 24. Nd2 {[%clk 0:02:30]}  e5 {[%clk 0:01:52]} 25. Bc2 {[%clk 0:02:19]}  Bd5 {[%clk 0:01:49]} 26. e4 {[%clk 0:02:14]}  Be6 {[%clk 0:01:42]} 27. exf5 {[%clk 0:02:13]}  Bxf5 {[%clk 0:01:43]} 28. Bb3 {[%clk 0:01:54]}  Be6 {[%clk 0:01:42]} 29. Bxe6+ {[%clk 0:01:47]}  Kxe6 {[%clk 0:01:43]} 30. Ne4 {[%clk 0:01:47]}  Nd6 {[%clk 0:01:41]} 31. Nd2 {[%clk 0:01:31]}  Kd5 {[%clk 0:01:39]} 32. f3 {[%clk 0:01:30]}  e4 {[%clk 0:01:35]} 33. Be7 {[%clk 0:01:12]}  exf3+ {[%clk 0:01:33]} 34. Kxf3 {[%clk 0:01:13]}  Nc4 {[%clk 0:01:32]} 35. Ne4 {[%clk 0:01:07]}  Nxa3 {[%clk 0:01:25]} 36. Nf6+ {[%clk 0:01:03]}  Ke6 {[%clk 0:01:26]} 37. Bc5 {[%clk 0:01:03]}  Bb8 {[%clk 0:01:19]} 38. h4 {[%clk 0:01:00]}  Be5 {[%clk 0:01:05]} 39. Nxh7 {[%clk 0:00:59]}  Nc2 {[%clk 0:01:03]} 40. Ke4 {[%clk 0:00:57]}  Bc3 {[%clk 0:00:59]} 41. h5 {[%clk 0:00:49]}  gxh5 {[%clk 0:00:56]} 42. g6 {[%clk 0:00:50]}  Bxb4 {[%clk 0:00:47]} 43. Bf2 {[%clk 0:00:48]}  Be7 {[%clk 0:00:41]} 44. Bg3 {[%clk 0:00:44]}  Bf6 {[%clk 0:00:31]} 45. Bc7 {[%clk 0:00:30]}  b4 {[%clk 0:00:29]} 46. Ba5 {[%clk 0:00:20]}  b3 {[%clk 0:00:28]} 47. Bb4 {[%clk 0:00:11]}  Nxb4 {[%clk 0:00:28]} 0-1

[Event "January 9 Early 2024"]
[Site "https://www.chess.com"]
[Date "2024.01.11"]
[Round "8"]
[White "Vakhidov, Shahzod"]
[Black "Carre, Sylvain"]
[Result "1/2-1/2"]
[Board "118"]
[TimeControl "180+1"]
[WhiteFideId "14205270"]
[BlackFideId "642118"]
[WhiteElo "2504"]
[BlackElo "2374"]
[WhiteTeam "UZB"]
[BlackTeam "FRA"]
[WhiteClock "0:00:20"]
[BlackClock "0:00:18"]

1. d4 {[%clk 0:03:00]}  d5 {[%clk 0:03:00]} 2. Nf3 {[%clk 0:03:00]}  Nf6 {[%clk 0:03:00]} 3. c4 {[%clk 0:03:01]}  c6 {[%clk 0:03:00]} 4. cxd5 {[%clk 0:03:00]}  cxd5 {[%clk 0:03:00]} 5. Nc3 {[%clk 0:03:01]}  Nc6 {[%clk 0:03:01]} 6. Bf4 {[%clk 0:03:02]}  e6 {[%clk 0:03:01]} 7. e3 {[%clk 0:02:59]}  Bd6 {[%clk 0:03:01]} 8. Bg3 {[%clk 0:02:55]}  a6 {[%clk 0:03:00]} 9. Bd3 {[%clk 0:02:55]}  b5 {[%clk 0:03:00]} 10. Rc1 {[%clk 0:02:55]}  Bb7 {[%clk 0:03:00]} 11. O-O {[%clk 0:02:42]}  Bxg3 {[%clk 0:02:59]} 12. hxg3 {[%clk 0:02:41]}  O-O {[%clk 0:02:59]} 13. Ne5 {[%clk 0:02:39]}  Nxe5 {[%clk 0:02:52]} 14. dxe5 {[%clk 0:02:39]}  Ne4 {[%clk 0:02:53]} 15. Bxe4 {[%clk 0:02:27]}  dxe4 {[%clk 0:02:54]} 16. Qg4 {[%clk 0:02:27]}  Rc8 {[%clk 0:02:36]} 17. Nxe4 {[%clk 0:02:18]}  Bxe4 {[%clk 0:02:31]} 18. Qxe4 {[%clk 0:02:16]}  Rxc1 {[%clk 0:02:19]} 19. Rxc1 {[%clk 0:02:15]}  Qd2 {[%clk 0:01:59]} 20. Qc2 {[%clk 0:01:39]}  Qd5 {[%clk 0:01:59]} 21. a4 {[%clk 0:01:11]}  Qxe5 {[%clk 0:01:57]} 22. axb5 {[%clk 0:01:11]}  Qxb5 {[%clk 0:01:52]} 23. Rd1 {[%clk 0:01:09]}  h6 {[%clk 0:01:46]} 24. Qc3 {[%clk 0:01:08]}  Rb8 {[%clk 0:01:39]} 25. Rd4 {[%clk 0:01:02]}  Qxb2 {[%clk 0:01:12]} 26. Rd8+ {[%clk 0:01:01]}  Kh7 {[%clk 0:01:12]} 27. Qd3+ {[%clk 0:01:01]}  g6 {[%clk 0:00:47]} 28. Rxb8 {[%clk 0:00:55]}  Qxb8 {[%clk 0:00:48]} 29. Qxa6 {[%clk 0:00:56]}  Qb1+ {[%clk 0:00:41]} 30. Kh2 {[%clk 0:00:55]}  Qb2 {[%clk 0:00:40]} 31. Kg1 {[%clk 0:00:54]}  Kg7 {[%clk 0:00:37]} 32. Qd3 {[%clk 0:00:52]}  h5 {[%clk 0:00:36]} 33. f3 {[%clk 0:00:50]}  Qa1+ {[%clk 0:00:32]} 34. Kh2 {[%clk 0:00:50]}  Qb2 {[%clk 0:00:33]} 35. Qe4 {[%clk 0:00:48]}  Qf6 {[%clk 0:00:31]} 36. f4 {[%clk 0:00:41]}  Qb2 {[%clk 0:00:30]} 37. Qd3 {[%clk 0:00:39]}  Qf6 {[%clk 0:00:28]} 38. e4 {[%clk 0:00:39]}  Qb2 {[%clk 0:00:23]} 39. e5 {[%clk 0:00:36]}  Qb8 {[%clk 0:00:21]} 40. Qd7 {[%clk 0:00:32]}  Qb1 {[%clk 0:00:19]} 41. Qd8 {[%clk 0:00:27]}  Qf5 {[%clk 0:00:19]} 42. Qe7 {[%clk 0:00:27]}  Kg8 {[%clk 0:00:17]} 43. Qe8+ {[%clk 0:00:22]}  Kg7 {[%clk 0:00:18]} 44. Qe7 {[%clk 0:00:23]}  Kg8 {[%clk 0:00:18]} 45. Kg1 {[%clk 0:00:20]}  Kg7 {[%clk 0:00:18]} 46. Kh2 {[%clk 0:00:20]} 1/2-1/2

[Event "January 9 Early 2024"]
[Site "https://www.chess.com"]
[Date "2024.01.11"]
[Round "8"]
[White "Sturt, Raven"]
[Black "Sanal, Vahap"]
[Result "1-0"]
[Board "122"]
[TimeControl "180+1"]
[WhiteFideId "2007304"]
[BlackFideId "6300545"]
[WhiteElo "2783"]
[BlackElo "2924"]
[WhiteTeam "USA"]
[BlackTeam "TUR"]
[WhiteClock "0:00:19"]
[BlackClock "0:00:17"]

1. f4 {[%clk 0:03:00]}  d5 {[%clk 0:02:53]} 2. Nf3 {[%clk 0:03:00]}  c5 {[%clk 0:02:53]} 3. e3 {[%clk 0:03:01]}  Nc6 {[%clk 0:02:54]} 4. b3 {[%clk 0:03:02]}  Bg4 {[%clk 0:02:51]} 5. Bb5 {[%clk 0:02:59]}  e6 {[%clk 0:02:42]} 6. Bb2 {[%clk 0:02:59]}  Ne7 {[%clk 0:02:40]} 7. O-O {[%clk 0:02:56]}  a6 {[%clk 0:02:39]} 8. Be2 {[%clk 0:02:56]}  Nf5 {[%clk 0:02:31]} 9. Qe1 {[%clk 0:02:55]}  Be7 {[%clk 0:02:27]} 10. h3 {[%clk 0:02:55]}  Bxf3 {[%clk 0:02:26]} 11. Bxf3 {[%clk 0:02:55]}  h5 {[%clk 0:02:25]} 12. g3 {[%clk 0:02:50]}  Bf6 {[%clk 0:02:23]} 13. Nc3 {[%clk 0:02:45]}  b5 {[%clk 0:02:09]} 14. Rc1 {[%clk 0:02:39]}  g6 {[%clk 0:01:51]} 15. Kg2 {[%clk 0:02:34]}  Qc7 {[%clk 0:01:37]} 16. Nxd5 {[%clk 0:02:33]}  exd5 {[%clk 0:01:31]} 17. Bxf6 {[%clk 0:02:33]}  Rg8 {[%clk 0:01:26]} 18. Bxd5 {[%clk 0:02:33]}  Qd6 {[%clk 0:01:25]} 19. e4 {[%clk 0:02:30]}  Qxf6 {[%clk 0:01:13]} 20. e5 {[%clk 0:02:09]}  Qd8 {[%clk 0:01:12]} 21. Bxc6+ {[%clk 0:02:09]}  Ke7 {[%clk 0:01:13]} 22. Bxa8 {[%clk 0:02:08]}  Qxa8+ {[%clk 0:01:14]} 23. Kh2 {[%clk 0:02:05]}  h4 {[%clk 0:01:12]} 24. g4 {[%clk 0:02:03]}  Ng3 {[%clk 0:01:13]} 25. Rf2 {[%clk 0:02:01]}  Qd5 {[%clk 0:01:13]} 26. Qe3 {[%clk 0:01:58]}  Rd8 {[%clk 0:01:09]} 27. c4 {[%clk 0:01:56]}  bxc4 {[%clk 0:01:06]} 28. bxc4 {[%clk 0:01:55]}  Qc6 {[%clk 0:01:06]} 29. f5 {[%clk 0:01:51]}  gxf5 {[%clk 0:01:04]} 30. gxf5 {[%clk 0:01:51]}  Rd4 {[%clk 0:01:00]} 31. Qg5+ {[%clk 0:01:38]}  Kd7 {[%clk 0:01:00]} 32. e6+ {[%clk 0:01:39]}  fxe6 {[%clk 0:01:00]} 33. fxe6+ {[%clk 0:01:39]}  Qxe6 {[%clk 0:00:57]} 34. Qxc5 {[%clk 0:01:33]}  Rd3 {[%clk 0:00:48]} 35. Qa7+ {[%clk 0:01:31]}  Ke8 {[%clk 0:00:44]} 36. Qb8+ {[%clk 0:01:26]}  Kd7 {[%clk 0:00:41]} 37. Qb7+ {[%clk 0:01:24]}  Ke8 {[%clk 0:00:41]} 38. Qb8+ {[%clk 0:01:02]}  Kd7 {[%clk 0:00:41]} 39. Qb7+ {[%clk 0:00:29]}  Ke8 {[%clk 0:00:40]} 40. Qg2 {[%clk 0:00:29]}  Qe5 {[%clk 0:00:21]} 41. Qa8+ {[%clk 0:00:27]}  Rd8 {[%clk 0:00:21]} 42. Rf8+ {[%clk 0:00:26]}  Kxf8 {[%clk 0:00:21]} 43. Qxd8+ {[%clk 0:00:27]}  Kg7 {[%clk 0:00:21]} 44. Qd7+ {[%clk 0:00:21]}  Kh6 {[%clk 0:00:21]} 45. Qc6+ {[%clk 0:00:19]}  Kg7 {[%clk 0:00:19]} 46. Qb7+ {[%clk 0:00:20]}  Kh6 {[%clk 0:00:19]} 47. Qxa6+ {[%clk 0:00:19]}  Kh5 {[%clk 0:00:17]} 48. Qb5 {[%clk 0:00:19]} 1-0

[Event "January 9 Early 2024"]
[Site "https://www.chess.com"]
[Date "2024.01.11"]
[Round "8"]
[White "Kukhmazov, Arsen"]
[Black "Niemann, Hans Moke"]
[Result "1-0"]
[Board "127"]
[TimeControl "180+1"]
[WhiteFideId "24108260"]
[BlackFideId "2093596"]
[WhiteElo "2921"]
[BlackElo "3053"]
[WhiteTeam "FID"]
[BlackTeam "USA"]
[WhiteClock "0:00:10"]
[BlackClock "0:00:24"]

1. d4 {[%clk 0:03:00]}  Nf6 {[%clk 0:02:53]} 2. c4 {[%clk 0:03:01]}  g6 {[%clk 0:02:53]} 3. g3 {[%clk 0:03:01]}  Bg7 {[%clk 0:02:53]} 4. Bg2 {[%clk 0:03:01]}  O-O {[%clk 0:02:54]} 5. Nc3 {[%clk 0:03:02]}  d6 {[%clk 0:02:54]} 6. Nf3 {[%clk 0:03:03]}  Nbd7 {[%clk 0:02:54]} 7. O-O {[%clk 0:03:03]}  e5 {[%clk 0:02:55]} 8. h3 {[%clk 0:03:04]}  Re8 {[%clk 0:02:55]} 9. e4 {[%clk 0:03:04]}  exd4 {[%clk 0:02:54]} 10. Nxd4 {[%clk 0:03:05]}  Nc5 {[%clk 0:02:55]} 11. Re1 {[%clk 0:03:06]}  h6 {[%clk 0:02:55]} 12. Rb1 {[%clk 0:03:01]}  a5 {[%clk 0:02:55]} 13. Ndb5 {[%clk 0:03:01]}  Nfd7 {[%clk 0:02:43]} 14. Be3 {[%clk 0:02:52]}  Na6 {[%clk 0:02:25]} 15. Qd2 {[%clk 0:02:32]}  Kh7 {[%clk 0:02:24]} 16. Rbd1 {[%clk 0:02:30]}  Ne5 {[%clk 0:02:24]} 17. Qe2 {[%clk 0:02:24]}  g5 {[%clk 0:02:01]} 18. c5 {[%clk 0:02:09]}  Bd7 {[%clk 0:01:37]} 19. cxd6 {[%clk 0:02:08]}  c6 {[%clk 0:01:37]} 20. Nd4 {[%clk 0:02:01]}  g4 {[%clk 0:01:35]} 21. hxg4 {[%clk 0:02:01]}  Nxg4 {[%clk 0:01:34]} 22. Bf4 {[%clk 0:01:54]}  Nc5 {[%clk 0:01:33]} 23. Qf3 {[%clk 0:01:33]}  Bxd4 {[%clk 0:01:16]} 24. Rxd4 {[%clk 0:01:33]}  Qf6 {[%clk 0:01:16]} 25. e5 {[%clk 0:01:25]}  Qg6 {[%clk 0:01:13]} 26. Rc4 {[%clk 0:00:50]}  Nd3 {[%clk 0:01:08]} 27. Qxd3 {[%clk 0:00:45]}  Qxd3 {[%clk 0:01:07]} 28. Be4+ {[%clk 0:00:45]}  Qxe4 {[%clk 0:01:07]} 29. Nxe4 {[%clk 0:00:43]}  Kg6 {[%clk 0:01:01]} 30. Nc5 {[%clk 0:00:42]}  Be6 {[%clk 0:01:00]} 31. Nxe6 {[%clk 0:00:42]}  Rxe6 {[%clk 0:01:01]} 32. f3 {[%clk 0:00:40]}  Nf6 {[%clk 0:01:00]} 33. Bd2 {[%clk 0:00:35]}  Nd5 {[%clk 0:00:54]} 34. Rg4+ {[%clk 0:00:27]}  Kh7 {[%clk 0:00:49]} 35. f4 {[%clk 0:00:27]}  f5 {[%clk 0:00:43]} 36. Rh4 {[%clk 0:00:20]}  Kg6 {[%clk 0:00:41]} 37. Kf2 {[%clk 0:00:21]}  h5 {[%clk 0:00:41]} 38. Reh1 {[%clk 0:00:21]}  Rh8 {[%clk 0:00:41]} 39. g4 {[%clk 0:00:21]}  fxg4 {[%clk 0:00:40]} 40. Rxg4+ {[%clk 0:00:22]}  Kf5 {[%clk 0:00:38]} 41. Rg5+ {[%clk 0:00:20]}  Ke4 {[%clk 0:00:38]} 42. Re1+ {[%clk 0:00:08]}  Kd3 {[%clk 0:00:37]} 43. f5 {[%clk 0:00:09]}  Ree8 {[%clk 0:00:34]} 44. Rg3+ {[%clk 0:00:09]}  Kxd2 {[%clk 0:00:33]} 45. Re2+ {[%clk 0:00:09]}  Kc1 {[%clk 0:00:24]} 46. Rg1# {[%clk 0:00:10]} 1-0

[Event "January 9 Early 2024"]
[Site "https://www.chess.com"]
[Date "2024.01.11"]
[Round "8"]
[White "Pranav, V"]
[Black "Galchenko, Matvey"]
[Result "0-1"]
[Board "129"]
[TimeControl "180+1"]
[WhiteFideId "25060783"]
[BlackFideId "24175480"]
[WhiteElo "3038"]
[BlackElo "2930"]
[WhiteTeam "IND"]
[BlackTeam "FID"]
[WhiteClock "0:00:01"]
[BlackClock "0:00:08"]

1. e4 {[%clk 0:03:00]}  c5 {[%clk 0:02:56]} 2. Nf3 {[%clk 0:03:00]}  g6 {[%clk 0:02:56]} 3. d4 {[%clk 0:03:00]}  cxd4 {[%clk 0:02:57]} 4. Qxd4 {[%clk 0:03:01]}  Nf6 {[%clk 0:02:57]} 5. Bb5 {[%clk 0:03:02]}  Nc6 {[%clk 0:02:45]} 6. Bxc6 {[%clk 0:02:57]}  bxc6 {[%clk 0:02:46]} 7. O-O {[%clk 0:02:41]}  Bg7 {[%clk 0:02:41]} 8. Nc3 {[%clk 0:02:41]}  d6 {[%clk 0:02:30]} 9. Qa4 {[%clk 0:02:27]}  Bd7 {[%clk 0:01:57]} 10. e5 {[%clk 0:02:11]}  dxe5 {[%clk 0:01:58]} 11. Nxe5 {[%clk 0:02:11]}  O-O {[%clk 0:01:58]} 12. Rd1 {[%clk 0:02:08]}  Qc8 {[%clk 0:01:53]} 13. Bg5 {[%clk 0:02:05]}  Rd8 {[%clk 0:01:30]} 14. Rd3 {[%clk 0:01:52]}  Nd5 {[%clk 0:01:17]} 15. Re1 {[%clk 0:01:24]}  Bxe5 {[%clk 0:00:49]} 16. Rxe5 {[%clk 0:01:22]}  f6 {[%clk 0:00:50]} 17. Rexd5 {[%clk 0:00:44]}  cxd5 {[%clk 0:00:48]} 18. Qd4 {[%clk 0:00:45]}  Qc4 {[%clk 0:00:25]} 19. Qe3 {[%clk 0:00:20]}  Bf5 {[%clk 0:00:13]} 20. Rd4 {[%clk 0:00:20]}  Qc6 {[%clk 0:00:12]} 21. Bh6 {[%clk 0:00:20]}  e5 {[%clk 0:00:12]} 22. Rb4 {[%clk 0:00:05]}  d4 {[%clk 0:00:12]} 23. Qe2 {[%clk 0:00:05]}  dxc3 {[%clk 0:00:10]} 24. g4 {[%clk 0:00:06]}  Be6 {[%clk 0:00:07]} 25. b3 {[%clk 0:00:06]}  Qd6 {[%clk 0:00:06]} 26. Qb5 {[%clk 0:00:03]}  Qd1+ {[%clk 0:00:06]} 27. Kg2 {[%clk 0:00:03]}  Qd5+ {[%clk 0:00:06]} 28. Qxd5 {[%clk 0:00:02]}  Bxd5+ {[%clk 0:00:07]} 29. Kg3 {[%clk 0:00:03]}  Rab8 {[%clk 0:00:08]} 30. Ra4 {[%clk 0:00:03]}  Rd7 {[%clk 0:00:08]} 31. Ra6 {[%clk 0:00:03]}  Rb6 {[%clk 0:00:08]} 32. Ra5 {[%clk 0:00:03]}  Kf7 {[%clk 0:00:07]} 33. Rc5 {[%clk 0:00:03]}  g5 {[%clk 0:00:07]} 34. h4 {[%clk 0:00:02]}  Rc6 {[%clk 0:00:07]} 35. Rb5 {[%clk 0:00:01]}  gxh4+ {[%clk 0:00:07]} 36. Kxh4 {[%clk 0:00:01]}  Be4 {[%clk 0:00:08]} 0-1

[Event "January 9 Early 2024"]
[Site "https://www.chess.com"]
[Date "2024.01.11"]
[Round "8"]
[White "Bachmann, Axel"]
[Black "Radjabov, Teimour"]
[Result "0-1"]
[Board "130"]
[TimeControl "180+1"]
[WhiteFideId "3700488"]
[BlackFideId "13400924"]
[WhiteElo "2901"]
[BlackElo "3030"]
[WhiteTeam "PAR"]
[BlackTeam "AZE"]
[WhiteClock "0:00:01"]
[BlackClock "0:00:04"]

1. e4 {[%clk 0:02:57]}  c5 {[%clk 0:02:55]} 2. Nc3 {[%clk 0:02:57]}  Nc6 {[%clk 0:02:55]} 3. f4 {[%clk 0:02:56]}  e6 {[%clk 0:02:55]} 4. Nf3 {[%clk 0:02:55]}  d5 {[%clk 0:02:55]} 5. Bb5 {[%clk 0:02:55]}  Ne7 {[%clk 0:02:52]} 6. exd5 {[%clk 0:02:53]}  Nxd5 {[%clk 0:02:40]} 7. Bxc6+ {[%clk 0:02:50]}  bxc6 {[%clk 0:02:40]} 8. d3 {[%clk 0:02:50]}  Be7 {[%clk 0:02:32]} 9. Ne5 {[%clk 0:02:46]}  Qb6 {[%clk 0:02:24]} 10. Nc4 {[%clk 0:02:39]}  Qc7 {[%clk 0:02:24]} 11. O-O {[%clk 0:02:37]}  O-O {[%clk 0:02:24]} 12. Ne4 {[%clk 0:01:54]}  f5 {[%clk 0:02:23]} 13. Ng5 {[%clk 0:01:49]}  Bxg5 {[%clk 0:02:14]} 14. fxg5 {[%clk 0:01:50]}  e5 {[%clk 0:02:14]} 15. b3 {[%clk 0:01:44]}  Ba6 {[%clk 0:02:06]} 16. Qe1 {[%clk 0:01:43]}  Nb4 {[%clk 0:00:38]} 17. Rf2 {[%clk 0:01:29]}  Rae8 {[%clk 0:00:30]} 18. a3 {[%clk 0:00:39]}  Nd5 {[%clk 0:00:28]} 19. Qa5 {[%clk 0:00:39]}  Qxa5 {[%clk 0:00:23]} 20. Nxa5 {[%clk 0:00:40]}  e4 {[%clk 0:00:23]} 21. dxe4 {[%clk 0:00:40]}  fxe4 {[%clk 0:00:21]} 22. Rxf8+ {[%clk 0:00:40]}  Rxf8 {[%clk 0:00:21]} 23. c4 {[%clk 0:00:38]}  Nc3 {[%clk 0:00:19]} 24. Be3 {[%clk 0:00:37]}  Ne2+ {[%clk 0:00:17]} 25. Kh1 {[%clk 0:00:37]}  Nd4 {[%clk 0:00:18]} 26. Rc1 {[%clk 0:00:12]}  Bc8 {[%clk 0:00:11]} 27. h3 {[%clk 0:00:09]}  Re8 {[%clk 0:00:10]} 28. Rd1 {[%clk 0:00:08]}  Nc2 {[%clk 0:00:06]} 29. Bxc5 {[%clk 0:00:07]}  e3 {[%clk 0:00:06]} 30. Bxe3 {[%clk 0:00:03]}  Nxe3 {[%clk 0:00:06]} 31. Re1 {[%clk 0:00:04]}  Bd7 {[%clk 0:00:07]} 32. Nb7 {[%clk 0:00:03]}  Nf5 {[%clk 0:00:04]} 33. Rd1 {[%clk 0:00:04]}  Re7 {[%clk 0:00:04]} 34. Nc5 {[%clk 0:00:04]}  Be8 {[%clk 0:00:05]} 35. g4 {[%clk 0:00:01]}  Ng3+ {[%clk 0:00:04]} 36. Kg2 {[%clk 0:00:01]}  Ne4 {[%clk 0:00:05]} 37. Rd8 {[%clk 0:00:01]}  Kf7 {[%clk 0:00:04]} 0-1